bitfinex/quotes_BTCUSD_20240727
["timestamp","ask_amount","ask_price","bid_price","bid_amount"]
[1722047585723,0.15000715,67938.0,67937.0,1.72953857]
[1722047586161,0.10580512,67938.0,67937.0,1.72953857]
[1722047586726,0.15000715,67938.0,67937.0,1.72953857]
[1722047586943,0.10580512,67938.0,67937.0,1.82812564]
[1722047587374,0.15000715,67938.0,67937.0,1.72953857]
[1722047587588,0.10580512,67938.0,67937.0,1.72953857]
[1722047587806,0.10580512,67938.0,67937.0,1.82811279]
[1722047588511,0.12890039,67938.0,67937.0,1.82811279]
[1722047588920,0.10580512,67938.0,67937.0,1.8281445]
[1722047589643,0.10580512,67938.0,67937.0,2.40743309]
[1722047592225,0.12890002,67938.0,67937.0,2.40758382]
[1722047593328,0.10580512,67938.0,67937.0,2.40758382]
[1722047593963,0.10580512,67938.0,67937.0,2.15768523]
[1722047595237,0.10580512,67938.0,67937.0,2.40758382]
[1722047595608,0.10580512,67938.0,67937.0,2.40744287]
[1722047596595,0.12889955,67938.0,67937.0,2.40744287]
[1722047597379,0.07118643,67938.0,67937.0,2.40744287]
[1722047597736,0.07118643,67938.0,67937.0,2.70383287]
[1722047598153,0.0083,67940.0,67939.0,0.42809859]
[1722047598354,0.0083,67940.0,67939.0,1.54742487]
[1722047598560,0.0083,67940.0,67939.0,2.13618687]
[1722047598746,0.002,67949.0,67948.0,1.02075359]
[1722047598947,0.002,67949.0,67948.0,2.08858355]
[1722047599207,0.002,67949.0,67948.0,2.09058355]
[1722047599413,0.002,67949.0,67948.0,2.38492555]
[1722047600127,0.002,67949.0,67948.0,2.38292555]
[1722047600335,0.002,67949.0,67948.0,2.39692555]
[1722047600526,0.002,67949.0,67948.0,2.38292555]
[1722047601160,0.002,67949.0,67948.0,2.39692555]
[1722047601722,0.02508991,67949.0,67948.0,2.39692555]
[1722047601925,0.02508991,67949.0,67948.0,2.31162555]
[1722047602125,0.02508991,67949.0,67948.0,2.41092555]
[1722047602279,0.02508991,67949.0,67948.0,2.39692555]
[1722047602678,0.02508991,67949.0,67948.0,2.41092555]
[1722047602940,0.02508991,67949.0,67948.0,2.39692555]
[1722047603136,0.02508991,67949.0,67948.0,2.38292555]
[1722047603311,0.02508991,67949.0,67948.0,2.06172696]
[1722047603510,0.02508991,67949.0,67948.0,1.96433857]
[1722047603719,0.02508991,67949.0,67948.0,2.04963857]
[1722047604376,0.02508991,67949.0,67948.0,2.06363857]
[1722047604729,0.002,67949.0,67948.0,2.07232349]
[1722047606093,0.002,67949.0,67948.0,2.32222208]
[1722047606238,0.002,67949.0,67948.0,2.41923225]
[1722047606438,0.00284,67949.0,67948.0,2.41923225]
[1722047607996,0.02593008,67949.0,67948.0,2.41923225]
[1722047608714,0.02593008,67949.0,67948.0,2.41928989]
[1722047611274,0.02593008,67949.0,67948.0,2.32222208]
[1722047613559,0.02593008,67949.0,67948.0,2.07232349]
[1722047617479,0.02593008,67949.0,67948.0,2.1692825]
[1722047617647,0.00284,67949.0,67948.0,2.07232349]
[1722047618427,0.00284,67949.0,67948.0,2.16881816]
[1722047618633,0.00284,67949.0,67948.0,2.16869321]
[1722047618839,0.00284,67949.0,67948.0,2.08339321]
[1722047619036,0.00284,67949.0,67948.0,2.07232349]
[1722047619497,0.00284,67949.0,67948.0,2.16869434]
[1722047621017,0.02593139,67949.0,67948.0,2.16869434]
[1722047621167,0.10206987,67949.0,67948.0,2.16869434]
[1722047622022,0.10206987,67949.0,67948.0,2.41893192]
[1722047625291,0.10206987,67949.0,67948.0,2.32222208]
[1722047625410,0.10206987,67949.0,67948.0,2.4186593]
[1722047626263,0.07897848,67949.0,67948.0,2.4186593]
[1722047628413,0.07897848,67949.0,67948.0,2.4183754]
[1722047628804,0.07897848,67949.0,67948.0,2.41837618]
[1722047629007,0.0083,67956.0,67955.0,1.31499059]
[1722047629207,0.0083,67961.0,67960.0,0.28489859]
[1722047629415,0.0083,67961.0,67960.0,1.89122726]
[1722047629617,0.03138693,67961.0,67960.0,3.06838726]
[1722047630132,0.0083,67961.0,67960.0,3.06838726]
[1722047630266,0.0083,67961.0,67960.0,3.08238726]
[1722047631176,0.0083,67961.0,67960.0,2.99708726]
[1722047631373,0.0083,67961.0,67960.0,3.08238726]
[1722047631987,0.0083,67961.0,67960.0,2.98623316]
[1722047632163,0.0083,67961.0,67960.0,3.08355225]
[1722047632412,0.0083,67961.0,67960.0,2.98623316]
[1722047632613,0.0083,67961.0,67960.0,3.09755226]
[1722047632819,0.0083,67961.0,67960.0,2.55336367]
[1722047633027,0.0083,67961.0,67960.0,2.09537367]
[1722047633253,0.0083,67961.0,67960.0,2.18067367]
[1722047633426,0.03138576,67961.0,67960.0,2.18067367]
[1722047633990,0.03138576,67961.0,67960.0,1.73988367]
[1722047634202,0.11018576,67961.0,67960.0,1.82518367]
[1722047634419,0.0871,67961.0,67960.0,1.72786457]
[1722047636109,0.08720141,67961.0,67960.0,1.148315]
[1722047636317,0.0083,67961.0,67960.0,1.83536457]
[1722047636473,0.0083,67961.0,67960.0,2.51173349]
[1722047637170,0.0083,67961.0,67960.0,2.49773349]
[1722047637301,0.0083,67961.0,67960.0,2.48373349]
[1722047637508,0.0083,67961.0,67960.0,2.49773349]
[1722047638730,0.0083,67961.0,67960.0,2.51162152]
[1722047639536,0.0083,67961.0,67960.0,2.48362152]
[1722047639737,0.0083,67961.0,67960.0,2.49762152]
[1722047639955,0.0083,67961.0,67960.0,2.51162152]
[1722047640265,0.0083,67961.0,67960.0,2.26172293]
[1722047640466,0.0083,67961.0,67960.0,2.51362152]
[1722047641255,0.0083,67961.0,67960.0,2.51324166]
[1722047641456,0.0083,67963.0,67962.0,1.02260359]
[1722047641657,0.00829,67977.0,67974.0,0.28489859]
[1722047641864,0.00829,67977.0,67974.0,2.19162326]
[1722047642015,0.00829,67977.0,67976.0,0.43200859]
[1722047642224,0.002,67989.0,67988.0,0.72615159]
[1722047642435,0.002,67989.0,67988.0,1.91011916]
[1722047642633,0.002,67989.0,67988.0,2.60955716]
[1722047642841,0.02507742,67989.0,67988.0,2.60955716]
[1722047643039,0.02507742,67989.0,67988.0,2.73635716]
[1722047643358,0.02507742,67989.0,67988.0,2.80685716]
[1722047643723,0.02507742,67989.0,67988.0,2.27678957]
[1722047644216,0.02507742,67989.0,67988.0,2.29078957]
[1722047644330,0.02507742,67989.0,67988.0,2.3311179]
[1722047644532,0.02507742,67989.0,67988.0,2.29078957]
[1722047645447,0.02507742,67989.0,67988.0,2.27678957]
[1722047645848,0.02507742,67989.0,67988.0,2.29078957]
[1722047646259,0.02507742,67989.0,67988.0,2.27678957]
[1722047646491,0.02507742,67989.0,67988.0,2.29078957]
[1722047646693,0.02507742,67989.0,67988.0,2.27678957]
[1722047647052,0.02507742,67989.0,67988.0,2.27161029]
[1722047647292,0.02507742,67989.0,67988.0,2.28561029]
[1722047647894,0.02507742,67989.0,67988.0,2.29961029]
[1722047648233,0.02507742,67989.0,67988.0,2.21801029]
[1722047649181,0.02507742,67989.0,67988.0,2.20401029]
[1722047649583,0.02507742,67989.0,67988.0,2.21801029]
[1722047650039,0.02507742,67989.0,67988.0,2.00591029]
[1722047651205,0.02507742,67989.0,67988.0,1.60702057]
[1722047651643,0.02517883,67989.0,67988.0,0.91868257]
[1722047651983,0.10837883,67989.0,67988.0,0.47742957]
[1722047652258,0.10837883,67989.0,67988.0,0.32717]
[1722047652259,0.27046083,67989.0,67988.0,0.32717]
[1722047652457,0.29380298,67989.0,67988.0,0.32717]
[1722047652665,0.20882098,67989.0,67988.0,0.32717]
[1722047652817,0.20882098,67989.0,67988.0,0.31317]
[1722047653161,0.20882098,67989.0,67988.0,0.29917]
[1722047653417,0.20882098,67989.0,67988.0,0.32717]
[1722047653794,0.20871957,67989.0,67988.0,1.062592]
[1722047653999,0.20882098,67989.0,67988.0,0.768423]
[1722047654195,0.20871957,67989.0,67988.0,0.768423]
[1722047654349,0.20882098,67989.0,67988.0,0.768423]
[1722047655921,0.20882098,67989.0,67988.0,0.782423]
[1722047656095,0.20882098,67989.0,67988.0,0.34117]
[1722047656296,0.20882098,67989.0,67988.0,0.29917]
[1722047656499,0.20882098,67989.0,67988.0,0.31317]
[1722047656752,0.35590298,67989.0,67988.0,0.32717]
[1722047657100,0.35590298,67989.0,67988.0,0.31317]
[1722047657320,0.35590298,67989.0,67988.0,0.29917]
[1722047657516,0.20882098,67989.0,67988.0,0.31317]
[1722047657679,0.20882098,67989.0,67988.0,0.32717]
[1722047657880,0.20882098,67989.0,67988.0,0.31317]
[1722047658119,0.20882098,67989.0,67988.0,0.32617]
[1722047658883,0.20882098,67989.0,67988.0,0.31217]
[1722047659144,0.20882098,67989.0,67988.0,0.32417]
[1722047660712,0.35590298,67989.0,67988.0,0.32417]
[1722047661113,0.20882098,67989.0,67988.0,0.32417]
[1722047661517,0.20864393,67989.0,67988.0,0.32417]
[1722047665422,0.35572593,67989.0,67988.0,0.32417]
[1722047665801,0.20864393,67989.0,67988.0,0.32417]
[1722047667527,0.18556651,67989.0,67988.0,0.32417]
[1722047667769,0.18556651,67989.0,67988.0,0.32412985]
[1722047670754,0.18640651,67989.0,67988.0,0.32412985]
[1722047670955,0.2094851,67989.0,67988.0,0.32412985]
[1722047671178,0.20938369,67989.0,67988.0,0.32412985]
[1722047671332,0.2094851,67989.0,67988.0,0.32412985]
[1722047671531,0.47277609,67989.0,67988.0,0.32412985]
[1722047672841,0.32569409,67989.0,67988.0,0.32412985]
[1722047673609,0.47277609,67989.0,67988.0,0.32412985]
[1722047676178,0.32569409,67989.0,67988.0,0.32412985]
[1722047677953,0.32559268,67989.0,67988.0,0.32412985]
[1722047678192,0.18039409,67989.0,67988.0,1.12075185]
[1722047680229,0.18029268,67989.0,67988.0,1.12075185]
[1722047680403,0.18039409,67989.0,67988.0,1.12075185]
[1722047681023,0.18029268,67989.0,67988.0,1.12075185]
[1722047681225,0.18039409,67989.0,67988.0,1.12075185]
[1722047681402,0.18029268,67989.0,67988.0,1.12075185]
[1722047681586,0.22434482,67989.0,67988.0,1.12075185]
[1722047681784,0.22444623,67989.0,67988.0,1.12075185]
[1722047681985,0.22434482,67989.0,67988.0,1.12075185]
[1722047682242,0.31002917,67989.0,67988.0,1.12075185]
[1722047682543,0.31013058,67989.0,67988.0,1.12075185]
[1722047682685,0.18039409,67989.0,67988.0,1.12075185]
[1722047682903,0.16539409,67989.0,67988.0,1.12075185]
[1722047683288,0.18039409,67989.0,67988.0,1.05955185]
[1722047683514,0.20136764,67989.0,67988.0,1.05955185]
[1722047684010,0.1573155,67989.0,67988.0,1.05955185]
[1722047684435,0.20138887,67989.0,67988.0,1.05955185]
[1722047686926,0.22446752,67989.0,67988.0,1.05955185]
[1722047687291,0.1573155,67989.0,67988.0,1.05955185]
[1722047687702,0.04110651,67989.0,67988.0,1.05955185]
[1722047688054,0.1573155,67989.0,67988.0,1.05955185]
[1722047689971,0.18039413,67989.0,67988.0,1.05955185]
[1722047690359,0.24653349,67989.0,67988.0,1.05955185]
[1722047690958,0.24655488,67989.0,67988.0,1.05955185]
[1722047691165,0.22347625,67989.0,67988.0,1.05955185]
[1722047692194,0.1573155,67989.0,67988.0,1.05955185]
[1722047692594,0.15721409,67989.0,67988.0,1.05955185]
[1722047692800,0.15876829,67989.0,67988.0,1.05955185]
[1722047693010,0.15721409,67989.0,67988.0,1.05955185]
[1722047693347,0.24542842,67989.0,67988.0,1.05955185]
[1722047693630,0.24552983,67989.0,67988.0,1.05955185]
[1722047693976,0.26860806,67989.0,67988.0,1.05955185]
[1722047694175,0.18039373,67989.0,67988.0,1.05955185]
[1722047694378,0.26866869,67989.0,67988.0,1.05955185]
[1722047695203,0.18039373,67989.0,67988.0,1.05955185]
[1722047695672,0.1573155,67989.0,67988.0,1.05955185]
[1722047696078,0.15721409,67989.0,67988.0,1.13465185]
[1722047696237,0.2676592,67989.0,67988.0,1.13465185]
[1722047697136,0.1573155,67989.0,67988.0,1.13465185]
[1722047697322,0.04110651,67989.0,67988.0,1.13465185]
[1722047700328,0.0260051,67989.0,67988.0,1.49322085]
[1722047700663,0.02610651,67989.0,67988.0,1.49322085]
[1722047701334,0.0260051,67989.0,67988.0,1.49322085]
[1722047701474,0.10616071,67989.0,67988.0,1.05955185]
[1722047701684,0.2223697,67989.0,67988.0,1.05955185]
[1722047701907,0.2208155,67989.0,67988.0,1.05955185]
[1722047702150,0.2208155,67989.0,67988.0,1.06047585]
[1722047702945,0.2208155,67989.0,67988.0,0.76630685]
[1722047703184,0.24389382,67989.0,67988.0,0.76630685]
[1722047703539,0.76584082,67989.0,67988.0,0.32505385]
[1722047703761,0.69002566,67989.0,67988.0,0.32505385]
[1722047703960,0.68847146,67989.0,67988.0,0.32505385]
[1722047704159,0.40880584,67989.0,67988.0,0.32505385]
[1722047704365,0.38572752,67989.0,67988.0,0.32505385]
[1722047704747,0.53280952,67989.0,67988.0,0.32505385]
[1722047705142,0.38572752,67989.0,67988.0,0.32505385]
[1722047705353,0.66537781,67989.0,67988.0,0.32505385]
[1722047705584,0.53280952,67989.0,67988.0,0.32505385]
[1722047705992,1.12113952,67989.0,67988.0,0.32505385]
[1722047706691,1.41480731,67989.0,67988.0,0.32505385]
[1722047706934,1.12064231,67989.0,67988.0,0.32505385]
[1722047707138,1.41480731,67989.0,67988.0,0.32505385]
[1722047709823,1.56393207,67989.0,67988.0,0.32505385]
[1722047709940,1.56401853,67989.0,67988.0,0.32505385]
[1722047710140,1.56401853,67989.0,67988.0,0.31305385]
[1722047710352,1.41489377,67989.0,67988.0,0.31305385]
[1722047710595,1.41489377,67989.0,67988.0,0.32005385]
[1722047711519,1.41489377,67989.0,67988.0,0.30705385]
[1722047711693,1.43787286,67989.0,67988.0,0.31505385]
[1722047711900,1.43797427,67989.0,67988.0,0.31505385]
[1722047712109,1.41479236,67989.0,67988.0,0.31505385]
[1722047712441,1.41489377,67989.0,67988.0,0.31505385]
[1722047712645,1.41479236,67989.0,67988.0,0.31505385]
[1722047713414,1.41506076,67989.0,67988.0,0.31505385]
[1722047713621,1.45145118,67989.0,67988.0,0.31505385]
[1722047713829,1.78222576,67989.0,67988.0,0.31505385]
[1722047714229,1.73222576,67989.0,67988.0,0.31505385]
[1722047715032,1.73222576,67989.0,67988.0,0.30705385]
[1722047715436,1.75730694,67989.0,67988.0,0.30705385]
[1722047715989,1.75886114,67989.0,67988.0,0.30705385]
[1722047716314,1.90776166,67989.0,67988.0,0.30005385]
[1722047716543,1.73759922,67989.0,67988.0,0.30005385]
[1722047716741,1.88649975,67989.0,67988.0,0.30005385]
[1722047716980,1.86447568,67989.0,67988.0,0.30005385]
[1722047718245,1.71712935,67989.0,67988.0,0.30005385]
[1722047718455,1.71557515,67989.0,67988.0,0.30005385]
[1722047719131,1.76557515,67989.0,67988.0,0.30005385]
[1722047719672,1.79021137,67989.0,67988.0,0.30005385]
[1722047719870,1.79011251,67989.0,67988.0,0.30005385]
[1722047720487,1.94037208,67989.0,67988.0,0.30005385]
[1722047720907,1.93881788,67989.0,67988.0,0.30005385]
[1722047721107,1.94293058,67989.0,67988.0,0.30005385]
[1722047721309,1.76958899,67989.0,67988.0,0.30005385]
[1722047721995,1.76803479,67989.0,67988.0,0.30005385]
[1722047722689,1.76946402,67989.0,67988.0,0.30005385]
[1722047722865,1.76803479,67989.0,67988.0,0.30005385]
[1722047723260,1.69426086,67989.0,67988.0,0.30005385]
[1722047723500,1.77821595,67989.0,67988.0,0.30005385]
[1722047723652,1.72671549,67989.0,67988.0,0.30005385]
[1722047723875,1.77826969,67989.0,67988.0,0.30005385]
[1722047724644,1.80135188,67989.0,67988.0,0.30005385]
[1722047724847,1.75135188,67989.0,67988.0,0.30005385]
[1722047725087,1.72826969,67989.0,67988.0,0.30005385]
[1722047725290,1.77826969,67989.0,67988.0,0.30005385]
[1722047725866,1.72826969,67989.0,67988.0,0.30005385]
[1722047726422,1.6471062,67989.0,67988.0,0.30005385]
[1722047726818,1.51467304,67989.0,67988.0,0.30005385]
[1722047726972,1.51622724,67989.0,67988.0,0.30005385]
[1722047727174,1.64688669,67989.0,67988.0,0.30005385]
[1722047727603,1.64188669,67989.0,67988.0,0.30005385]
[1722047727974,1.64488669,67989.0,67988.0,0.30005385]
[1722047728181,1.64486172,67989.0,67988.0,0.30005385]
[1722047728398,1.64476031,67989.0,67988.0,0.30005385]
[1722047728600,1.64486172,67989.0,67988.0,0.30005385]
[1722047729005,1.69486172,67989.0,67988.0,0.30005385]
[1722047729211,1.69786172,67989.0,67988.0,0.30005385]
[1722047729381,1.64786172,67989.0,67988.0,0.30005385]
[1722047730166,1.4819369,67989.0,67988.0,0.30005385]
[1722047730336,1.56565141,67989.0,67988.0,0.30005385]
[1722047731295,1.51565141,67989.0,67988.0,0.30005385]
[1722047731509,1.54028771,67989.0,67988.0,0.30005385]
[1722047732836,1.67045211,67989.0,67988.0,0.30005385]
[1722047732989,1.66889791,67989.0,67988.0,0.30005385]
[1722047733213,1.51565141,67989.0,67988.0,0.30005385]
[1722047733511,1.4319369,67989.0,67988.0,0.30005385]
[1722047733713,1.51587973,67989.0,67988.0,0.30005385]
[1722047733864,1.56743393,67989.0,67988.0,0.30005385]
[1722047734257,1.51743393,67989.0,67988.0,0.30005385]
[1722047734587,1.43097973,67989.0,67988.0,0.30005385]
[1722047734789,1.51587973,67989.0,67988.0,0.30005385]
[1722047735879,1.53896175,67989.0,67988.0,0.30005385]
[1722047736241,1.53878472,67989.0,67988.0,0.30005385]
[1722047737000,1.47299476,67989.0,67988.0,0.30005385]
[1722047737728,1.37149476,67989.0,67988.0,0.30005385]
[1722047740390,1.3482266,67989.0,67988.0,0.30005385]
[1722047743409,1.37130814,67989.0,67988.0,0.30005385]
[1722047743806,1.34827226,67989.0,67988.0,0.30005385]
[1722047745988,1.34817085,67989.0,67988.0,0.30005385]
[1722047746616,1.34827226,67989.0,67988.0,0.30005385]
[1722047747134,1.37133276,67989.0,67988.0,0.30005385]
[1722047748194,0.99320885,67989.0,67988.0,0.30005385]
[1722047748401,0.22574684,67989.0,67988.0,0.43825385]
[1722047748655,0.35722281,67989.0,67988.0,0.96440685]
[1722047748866,0.22424276,67989.0,67988.0,0.96440685]
[1722047749008,0.22434417,67989.0,67988.0,0.96440685]
[1722047749445,0.22134417,67989.0,67988.0,0.96440685]
[1722047749820,0.22034417,67989.0,67988.0,0.96440685]
[1722047750032,0.22034417,67989.0,67988.0,0.97140685]
[1722047750316,0.21834417,67989.0,67988.0,0.88584292]
[1722047750515,0.21796092,67989.0,67988.0,0.89184292]
[1722047753850,0.1351144,67989.0,67988.0,0.89184292]
[1722047754083,0.21794943,67989.0,67988.0,0.89184292]
[1722047755485,0.2454479,67989.0,67988.0,0.89184292]
[1722047756442,0.15819432,67989.0,67988.0,0.89184292]
[1722047756946,0.2454479,67989.0,67988.0,0.89184292]
[1722047757244,0.24543083,67989.0,67988.0,0.89184292]
[1722047757384,0.1351144,67989.0,67988.0,0.89184292]
[1722047759372,0.1366686,67989.0,67988.0,0.89184292]
[1722047759565,0.22334225,67989.0,67988.0,0.89184292]
[1722047760265,0.24642221,67989.0,67988.0,0.89184292]
[1722047760475,0.15819436,67989.0,67988.0,0.89184292]
[1722047760671,0.24642133,67989.0,67988.0,0.89184292]
[1722047760870,0.15819436,67989.0,67988.0,0.89184292]
[1722047761204,0.1351144,67989.0,67988.0,0.89184292]
[1722047762673,0.1351144,67989.0,67988.0,1.18601192]
[1722047762855,0.22333244,67989.0,67988.0,0.89184292]
[1722047763058,0.1351144,67989.0,67988.0,0.89184292]
[1722047763241,0.10580449,67989.0,67988.0,0.89184292]
[1722047763931,0.10580449,67989.0,67988.0,0.59767392]
[1722047764123,0.14475733,67989.0,67988.0,0.59767392]
[1722047764312,0.16939173,67989.0,67988.0,0.89184292]
[1722047764678,0.16783753,67989.0,67988.0,0.89184292]
[1722047764877,0.25604887,67989.0,67988.0,0.89184292]
[1722047765060,0.25604881,67989.0,67988.0,0.89184292]
[1722047765567,0.23296861,67989.0,67988.0,1.18601192]
[1722047766427,0.23296301,67989.0,67988.0,0.89184292]
[1722047768933,0.16783753,67989.0,67988.0,0.89184292]
[1722047769133,0.14631153,67989.0,67988.0,0.89184292]
[1722047769469,0.14475733,67989.0,67988.0,0.89184292]
[1722047772324,0.1456968,67989.0,67988.0,0.89184292]
[1722047772530,0.16783753,67989.0,67988.0,1.18601192]
[1722047772727,0.23399029,67989.0,67988.0,1.18601192]
[1722047773024,0.23399029,67989.0,67988.0,1.48018092]
[1722047773226,0.23398999,67989.0,67988.0,1.48018092]
[1722047773426,0.23398999,67989.0,67988.0,1.18601192]
[1722047774080,0.15637774,67989.0,67988.0,1.18601192]
[1722047774260,0.20047624,67989.0,67988.0,0.31238992]
[1722047774463,0.15637774,67989.0,67988.0,0.31238992]
[1722047774676,0.2225302,67989.0,67988.0,0.31238992]
[1722047776306,1.32655474,67989.0,67988.0,0.31238992]
[1722047776549,1.45901635,67989.0,67988.0,0.31238992]
[1722047776820,1.56240797,67989.0,67988.0,0.31238992]
[1722047776993,1.71125853,67989.0,67988.0,0.30538992]
[1722047777194,1.71125853,67989.0,67988.0,0.31438992]
[1722047777329,1.56442799,67989.0,67988.0,0.31438992]
[1722047777552,1.56442799,67989.0,67988.0,0.30538992]
[1722047778202,1.56287379,67989.0,67988.0,0.30538992]
[1722047778399,1.45635365,67989.0,67988.0,0.30538992]
[1722047778640,1.45790785,67989.0,67988.0,0.29938992]
[1722047778959,1.45790785,67989.0,67988.0,0.30738992]
[1722047779458,1.37389204,67989.0,67988.0,0.29938992]
[1722047779662,1.45697232,67989.0,67988.0,0.29938992]
[1722047779884,1.60738679,67989.0,67988.0,0.29938992]
[1722047780048,1.40852652,67989.0,67988.0,0.29938992]
[1722047780576,1.55738679,67989.0,67988.0,0.29938992]
[1722047780753,1.40697232,67989.0,67988.0,0.29938992]
[1722047781272,1.40852652,67989.0,67988.0,0.29938992]
[1722047781995,1.45852652,67989.0,67988.0,0.29938992]
[1722047782717,1.40852652,67989.0,67988.0,0.29938992]
[1722047782927,1.40848877,67989.0,67988.0,0.29938992]
[1722047783553,1.45848877,67989.0,67988.0,0.29938992]
[1722047783750,1.50027642,67989.0,67988.0,0.29938992]
[1722047784111,1.49872222,67989.0,67988.0,0.29938992]
[1722047784529,1.50027642,67989.0,67988.0,0.29938992]
[1722047785026,1.45027642,67989.0,67988.0,0.29938992]
[1722047785753,1.40693457,67989.0,67988.0,0.29938992]
[1722047785981,1.49183457,67989.0,67988.0,0.29938992]
[1722047786231,1.50329654,67989.0,67988.0,0.29938992]
[1722047786446,1.5035626,67989.0,67988.0,0.29938992]
[1722047789127,1.50242907,67989.0,67988.0,0.29938992]
[1722047789625,1.50247008,67989.0,67988.0,0.29938992]
[1722047790990,1.53716429,67989.0,67988.0,0.29938992]
[1722047791212,1.57570224,67989.0,67988.0,0.29938992]
[1722047791442,1.52570224,67989.0,67988.0,0.29938992]
[1722047791663,1.50262204,67989.0,67988.0,0.29938992]
[1722047792838,1.41927244,67989.0,67988.0,0.29938992]
[1722047793051,1.50222136,67989.0,67988.0,0.29938992]
[1722047795155,1.52530404,67989.0,67988.0,0.29938992]
[1722047796138,1.52524946,67989.0,67988.0,0.29938992]
[1722047796392,1.52525249,67989.0,67988.0,0.29938992]
[1722047799653,1.52519015,67989.0,67988.0,0.29938992]
[1722047800554,1.49049594,67989.0,67988.0,0.29938992]
[1722047801010,1.26499594,67989.0,67988.0,0.43768992]
[1722047802988,1.26438687,67989.0,67988.0,0.43768992]
[1722047803948,0.6672596,67989.0,67988.0,0.43768992]
[1722047806295,0.66747982,67989.0,67988.0,0.43768992]
[1722047806673,0.66746817,67989.0,67988.0,0.43768992]
[1722047807696,0.6674239,67989.0,67988.0,0.43768992]
[1722047808084,0.2261769,67989.0,67988.0,0.58477392]
[1722047808889,0.23763714,67989.0,67988.0,1.17311192]
[1722047809249,0.3263421,67989.0,67988.0,1.17311192]
[1722047809372,0.15524688,67989.0,67988.0,1.17311192]
[1722047809785,0.22137361,67989.0,67988.0,1.17311192]
[1722047809984,0.15524688,67989.0,67988.0,1.17311192]
[1722047810210,0.15524688,67989.0,67988.0,1.18611192]
[1722047810441,0.19932961,67989.0,67988.0,1.18611192]
[1722047810638,0.19932961,67989.0,67988.0,1.20011192]
[1722047811518,0.19932961,67989.0,67988.0,0.90594292]
[1722047811712,0.19932961,67989.0,67988.0,0.99084292]
[1722047811920,0.15524688,67989.0,67988.0,0.99084292]
[1722047813712,0.20990712,67989.0,67988.0,0.99084292]
[1722047814848,0.15524634,67989.0,67988.0,0.99084292]
[1722047815184,0.14378664,67989.0,67988.0,0.99084292]
[1722047815390,0.12070396,67989.0,67988.0,0.99084292]
[1722047816568,0.18682301,67989.0,67988.0,0.99084292]
[1722047816747,0.12070396,67989.0,67988.0,0.99084292]
[1722047817693,0.26778596,67989.0,67988.0,0.46468992]
[1722047817872,0.26778596,67989.0,67988.0,0.38638992]
[1722047818855,0.29086586,67989.0,67988.0,0.38638992]
[1722047819408,0.29086586,67989.0,67988.0,0.32638992]
[1722047819409,0.35698491,67989.0,67988.0,0.32638992]
[1722047819625,0.35698513,67989.0,67988.0,0.32638992]
[1722047820017,0.33390523,67989.0,67988.0,0.32638992]
[1722047820426,0.62807023,67989.0,67988.0,0.32638992]
[1722047821172,0.56195096,67989.0,67988.0,0.32638992]
[1722047821380,0.85611596,67989.0,67988.0,0.32638992]
[1722047821776,0.96631474,67989.0,67988.0,0.32638992]
[1722047821978,0.85611596,67989.0,67988.0,0.32638992]
[1722047822239,0.96633052,67989.0,67988.0,0.32638992]
[1722047823024,0.98941097,67989.0,67988.0,0.32638992]
[1722047825504,0.98941908,67989.0,67988.0,0.32638992]
[1722047826263,1.07073157,67989.0,67988.0,0.32638992]
[1722047828468,1.04765112,67989.0,67988.0,0.32638992]
[1722047828895,1.04765999,67989.0,67988.0,0.32638992]
[1722047829821,0.45932999,67989.0,67988.0,0.46918992]
[1722047830200,0.75349499,67989.0,67988.0,0.46918992]
[1722047831282,0.64326345,67989.0,67988.0,0.46918992]
[1722047832073,0.56195096,67989.0,67988.0,0.46918992]
[1722047832346,0.64351121,67989.0,67988.0,0.46918992]
[1722047834205,0.20226421,67989.0,67988.0,0.46918992]
[1722047834604,0.29046361,67989.0,67988.0,0.46918992]
[1722047835165,0.20226421,67989.0,67988.0,0.46918992]
[1722047835641,0.22532784,67989.0,67988.0,0.46918992]
[1722047835872,0.31352949,67989.0,67988.0,0.46918992]
[1722047835999,0.22532784,67989.0,67988.0,0.46918992]
[1722047836229,0.34933001,67989.0,67988.0,0.46918992]
[1722047836479,0.35088421,67989.0,67988.0,0.46918992]
[1722047837087,0.34933001,67989.0,67988.0,0.46918992]
[1722047837289,0.35088421,67989.0,67988.0,0.46918992]
[1722047837572,0.20380221,67989.0,67988.0,0.46918992]
[1722047838487,0.20224801,67989.0,67988.0,0.46918992]
[1722047838681,0.20380221,67989.0,67988.0,0.46918992]
[1722047838885,0.20223106,67989.0,67988.0,0.61627392]
[1722047839385,0.31249973,67989.0,67988.0,0.61627392]
[1722047839589,0.33557952,67989.0,67988.0,0.91044292]
[1722047840024,0.22531085,67989.0,67988.0,0.91044292]
[1722047840202,0.33713372,67989.0,67988.0,0.91044292]
[1722047840608,0.17187582,67989.0,67988.0,1.20461192]
[1722047840785,0.12060255,67989.0,67988.0,1.20461192]
[1722047841166,0.12225816,67989.0,67988.0,1.20461192]
[1722047841369,0.18687424,67989.0,67988.0,1.20461192]
[1722047841774,0.12225816,67989.0,67988.0,1.20461192]
[1722047841993,0.18687424,67989.0,67988.0,1.19061192]
[1722047842197,0.18687339,67989.0,67988.0,1.19061192]
[1722047842444,0.12070396,67989.0,67988.0,1.19161192]
[1722047843102,0.11970396,67989.0,67988.0,1.17761192]
[1722047843301,0.11970396,67989.0,67988.0,1.19161192]
[1722047843539,0.11970396,67989.0,67988.0,1.20561192]
[1722047844051,0.14278314,67989.0,67988.0,1.20561192]
[1722047844257,0.11970396,67989.0,67988.0,1.19161192]
[1722047844895,0.11970396,67989.0,67988.0,1.48578092]
[1722047845323,0.11970396,67989.0,67988.0,1.47178092]
[1722047845524,0.11970396,67989.0,67988.0,1.49978092]
[1722047845928,0.11970396,67989.0,67988.0,1.48578092]
[1722047846292,0.20796757,67989.0,67988.0,1.48578092]
[1722047846464,0.20796757,67989.0,67988.0,1.49978092]
[1722047847525,0.23104682,67989.0,67988.0,1.49978092]
[1722047848274,0.14278321,67989.0,67988.0,1.49978092]
[1722047852727,0.11970396,67989.0,67988.0,1.49978092]
[1722047853260,0.23009499,67989.0,67988.0,1.49978092]
[1722047853460,0.23009499,67989.0,67988.0,1.20561192]
[1722047856083,0.25317439,67989.0,67988.0,1.20561192]
[1722047856284,0.23009499,67989.0,67988.0,1.20561192]
[1722047857347,0.11970396,67989.0,67988.0,1.20561192]
[1722047858269,0.11970396,67989.0,67988.0,1.06281192]
[1722047859061,0.12123282,67989.0,67988.0,1.06281192]
[1722047859233,0.11970396,67989.0,67988.0,1.06281192]
[1722047859449,0.14433807,67989.0,67988.0,1.06281192]
[1722047859655,0.14278387,67989.0,67988.0,1.06281192]
[1722047860169,0.11970396,67989.0,67988.0,1.06281192]
[1722047867312,0.20155601,67989.0,67988.0,1.06281192]
[1722047867550,0.22463592,67989.0,67988.0,1.06281192]
[1722047867754,0.22463592,67989.0,67988.0,0.76864292]
[1722047868586,0.20155601,67989.0,67988.0,0.76864292]
[1722047868987,0.11970396,67989.0,67988.0,0.76864292]
[1722047869159,0.09857253,67989.0,67988.0,0.76864292]